bitfinex-derivatives/quotes_SOLF0:USTF0_20250606
["timestamp","ask_amount","ask_price","bid_price","bid_amount"]
[1749233765268,424.5241,149.95,149.92,6.6648]
[1749233766175,33.54,149.95,149.93,6.6645]
[1749233766377,33.54,149.95,149.93,0.04234328]
[1749233766876,33.54,149.95,149.94,6.6643]
[1749233767373,6.6632,149.97,149.94,6.6643]
[1749233767580,11.19222885,149.97,149.94,6.6643]
[1749233767770,6.6632,149.97,149.94,6.6643]
[1749233768681,6.6632,149.97,149.95,6.6638]
[1749233769077,11.19432331,149.97,149.95,6.6638]
[1749233769278,11.19432443,149.97,149.95,6.6638]
[1749233769674,6.6632,149.97,149.95,6.6638]
[1749233770075,40.1827,149.98,149.95,6.6638]
[1749233770878,7.24885417,150.03,149.94,33.52]
[1749233771074,7.24885417,150.01,149.97,0.04475425]
[1749233771268,33.52,150.0,149.97,0.04475425]
[1749233771487,40.1817,150.0,149.97,0.04475425]
[1749233771775,33.52,150.0,149.97,0.04475425]
[1749233772175,33.52,150.0,149.97,6.70745425]
[1749233774079,40.1817,150.0,149.97,6.70745425]
[1749233774378,7.24885417,149.99,149.97,0.04475425]
[1749233774979,33.52,150.0,149.97,0.04475425]
[1749233775285,11.19297303,149.99,149.97,0.04475425]
[1749233775472,6.6623,149.99,149.97,10.04475425]
[1749233775979,33.52,150.0,149.97,10.04475425]
[1749233776685,33.52,150.0,149.98,6.6625]
[1749233777080,33.52,150.0,149.97,10.04475425]
[1749233777589,33.52,150.0,149.98,6.6623]
[1749233777784,33.52,150.0,149.97,10.04475425]
[1749233778388,33.52,150.0,149.98,6.6625]
[1749233781186,6.6614,150.01,149.98,6.6625]
[1749233781486,33.52,150.0,149.98,6.6625]
[1749233781686,6.6614,150.01,149.98,6.6625]
[1749233782183,40.1617,150.0,149.97,16.70745425]
[1749233782380,40.74885417,150.01,149.97,10.04475425]
[1749233782991,6.6625,149.98,149.97,10.04475425]
[1749233785390,6.6623,149.99,149.97,10.04475425]
[1749233785588,4.54064242,150.0,149.97,10.04475425]
[1749233786093,6.6625,149.98,149.97,10.04475425]
[1749233787591,4.52353945,150.0,149.97,10.04475425]
[1749233788091,6.6621,149.99,149.97,10.04475425]
[1749233789497,6.6625,149.98,149.97,10.04475425]
[1749233791096,6.6648,149.93,149.88,2.278]
[1749233791293,33.48,149.93,149.91,6.6656]
[1749233791593,33.48,149.93,149.9,7.24885417]
[1749233791794,33.48,149.93,149.91,6.6656]
[1749233791995,33.52588144,149.93,149.91,6.70904814]
[1749233794095,33.52588144,149.93,149.91,16.70904814]
[1749233794397,33.52588144,149.93,149.92,6.6652]
[1749233798890,0.04588144,149.93,149.92,6.6652]
[1749233806897,4.59788023,149.93,149.92,6.6652]
[1749233807097,4.59788023,149.93,149.92,16.6652]
[1749233807490,0.04588144,149.93,149.92,16.6652]
[1749233808400,4.60513331,149.93,149.92,16.6652]
[1749233809700,4.60738146,149.93,149.92,16.6652]
[1749233810105,4.60827841,149.93,149.92,16.6652]
[1749233813398,4.60880611,149.93,149.92,16.6652]
[1749233814409,0.04588144,149.93,149.92,16.6652]
[1749233814606,4.60790804,149.93,149.92,16.6652]
[1749233814797,4.60790501,149.93,149.92,16.6652]
[1749233816012,4.60790501,149.93,149.92,10.0]
[1749233816413,4.60790501,149.93,149.92,16.6652]
[1749233817506,0.04588144,149.93,149.92,16.6652]
[1749233817908,4.60027182,149.93,149.92,16.6652]
[1749233818109,0.04588144,149.93,149.92,16.6652]
[1749233818310,4.6005239,149.93,149.92,16.6652]
[1749233819211,0.04588144,149.93,149.92,16.6652]
[1749233819713,4.60126367,149.93,149.92,16.6652]
[1749233819909,4.60127286,149.93,149.92,16.6652]
[1749233820714,0.04588144,149.93,149.92,16.6652]
[1749233821713,4.60685949,149.93,149.92,16.6652]
[1749233822014,4.60687163,149.93,149.92,16.6652]
[1749233823506,4.6081319,149.93,149.92,16.6652]
[1749233824313,0.04588144,149.93,149.92,16.6652]
[1749233824813,4.60836421,149.93,149.92,16.6652]
[1749233825216,4.60836421,149.93,149.92,23.89772159]
[1749233825514,4.60836421,149.93,149.92,26.10182159]
[1749233826009,33.46,149.96,149.95,6.6639]
[1749233827710,6.24028462,150.02,149.94,14.51271369]
[1749233828017,33.46,150.06,150.01,7.23252159]
[1749233828313,33.46,150.06,150.02,0.04419109]
[1749233828314,40.1194,150.06,150.02,0.04419109]
[1749233828521,33.46,150.06,150.02,0.04419109]
[1749233829314,40.69252159,150.06,150.02,0.04419109]
[1749233830223,6.6603,150.03,150.02,0.04419109]
[1749233836424,6.6603,150.03,150.02,9.109e-05]
[1749233836620,6.6631,149.97,149.93,2.2644]
[1749233836917,7.23252159,149.98,149.92,6.665]
[1749233837117,6.6637,149.96,149.93,10.0]
[1749233837624,6.71397824,149.96,149.93,10.04606117]
[1749233837923,6.6639,149.95,149.93,10.04606117]
[1749233838121,0.05027824,149.96,149.93,10.04606117]
[1749233838322,4.55264044,149.96,149.93,10.04606117]
[1749233839413,6.71387824,149.96,149.93,16.71056117]
[1749233839617,18.45042929,149.96,149.93,16.71056117]
[1749233840117,7.23252159,149.94,149.93,10.04606117]
[1749233840621,13.89682159,149.94,149.93,10.04606117]
[1749233841416,18.40120015,149.94,149.93,10.04606117]
[1749233842127,13.89682159,149.94,149.93,10.04606117]
[1749233842926,18.40120015,149.94,149.93,10.04606117]
[1749233843516,13.89682159,149.94,149.93,10.04606117]
[1749233844926,7.23252159,149.94,149.93,10.04606117]
[1749233850628,7.23252159,149.94,149.93,16.71086117]
[1749233850829,40.69252159,149.94,149.93,16.71086117]
[1749233851432,40.69252159,149.94,149.93,10.04606117]
[1749233851929,40.69252159,149.94,149.93,0.04606117]
[1749233852130,40.69252159,149.94,149.93,10.04606117]
[1749233856331,0.05027824,149.96,149.93,10.04606117]
[1749233856933,0.05027824,149.96,149.94,6.6643]
[1749233858538,0.05027824,149.96,149.95,6.6639]
[1749233860330,7.28279983,149.96,149.93,10.04606117]
[1749233860739,6.6642,149.95,149.93,10.04606117]
[1749233861336,13.89682159,149.94,149.93,10.04606117]
[1749233861738,18.33356833,149.94,149.93,10.04606117]
[1749233863538,11.66926833,149.94,149.93,10.04606117]
[1749233864043,11.68650017,149.94,149.93,10.04606117]
[1749233864246,11.6860222,149.94,149.93,10.04606117]
[1749233864639,11.68615205,149.94,149.93,10.04606117]
[1749233865744,7.23252159,149.94,149.93,16.71086117]
[1749233865941,33.42,149.95,149.93,16.71086117]
[1749233866246,33.42,149.95,149.93,10.04606117]
[1749233866643,33.42,149.95,149.94,6.6643]
[1749233866839,0.05027824,149.96,149.93,10.04606117]
[1749233867640,0.05027824,149.96,149.95,6.6639]
[1749233867950,0.05027824,149.96,149.93,10.04606117]
[1749233868343,7.23252159,149.95,149.93,10.04606117]
[1749233868847,13.89662159,149.95,149.93,10.04606117]
[1749233869949,6.6643,149.94,149.93,10.04606117]
[1749233870243,33.42,149.94,149.93,10.04606117]
[1749233871450,40.0843,149.94,149.93,10.04606117]
[1749233871648,33.42,149.94,149.93,10.04606117]
[1749233874652,37.88762285,149.94,149.93,10.04606117]
[1749233875352,37.88762641,149.94,149.93,10.04606117]
[1749233875549,37.8876264,149.94,149.93,10.04606117]
[1749233877450,40.0843,149.94,149.93,10.04606117]
[1749233877655,44.55433377,149.94,149.93,10.04606117]
[1749233877849,44.55441562,149.94,149.93,10.04606117]
[1749233879351,40.0843,149.94,149.93,10.04606117]
[1749233879553,44.54511128,149.94,149.93,10.04606117]
[1749233879952,40.0843,149.94,149.93,10.04606117]
[1749233880655,37.88319892,149.94,149.93,10.04606117]
[1749233880854,37.88318791,149.94,149.93,10.04606117]
[1749233881548,44.547614,149.94,149.93,10.04606117]
[1749233881952,44.54764359,149.94,149.93,10.04606117]
[1749233882255,40.0843,149.94,149.93,10.04606117]
[1749233882454,44.54779317,149.94,149.93,10.04606117]
[1749233882655,44.54778954,149.94,149.93,10.04606117]
[1749233882953,40.0843,149.94,149.93,10.04606117]
[1749233883159,44.54243654,149.94,149.93,10.04606117]
[1749233883357,40.0843,149.94,149.93,10.04606117]
[1749233883559,44.54242971,149.94,149.93,10.04606117]
[1749233883759,44.53253704,149.94,149.93,10.04606117]
[1749233883961,44.53252557,149.94,149.93,10.04606117]
[1749233884359,6.6664,149.9,149.86,8.2578174]
[1749233884559,6.6664,149.9,149.86,2.0963]
[1749233884560,4.44712496,149.89,149.86,2.0963]
[1749233884760,4.44713607,149.88,149.87,6.6671]
[1749233885068,33.42,149.9,149.86,2.0963]
[1749233885359,4.49534823,149.89,149.88,6.667]
[1749233886355,0.04841796,149.89,149.88,6.667]
[1749233886563,4.49533118,149.89,149.88,16.667]
[1749233886757,0.04841796,149.89,149.88,16.667]
[1749233886959,4.49533118,149.89,149.88,16.667]
[1749233887160,4.49533118,149.89,149.88,10.0]
[1749233887461,11.72757796,149.89,149.88,10.0]
[1749233887664,11.72735958,149.89,149.87,0.04210835]
[1749233887865,4.44642003,149.88,149.87,0.04210835]
[1749233888059,4.44650268,149.88,149.87,0.04210835]
[1749233888256,11.11350268,149.88,149.87,0.04210835]
[1749233888452,11.09729666,149.88,149.87,0.04210835]
[1749233888661,11.09722134,149.88,149.87,0.04210835]
[1749233889164,11.09722306,149.88,149.87,0.04210835]
[1749233889463,11.09722306,149.88,149.87,10.04210835]
[1749233890366,6.6684,149.85,149.83,3.3371]
[1749233890561,47.32092159,149.85,149.83,3.3371]
[1749233890762,6.6688,149.84,149.83,3.3371]
[1749233890964,4.41447397,149.84,149.83,3.3371]
[1749233891359,11.08327397,149.84,149.83,3.3371]
[1749233891558,6.6688,149.84,149.83,3.3371]
[1749233891954,6.6688,149.84,149.83,13.3371]
[1749233896467,47.37237927,149.85,149.83,13.3371]
[1749233896667,40.70377927,149.85,149.83,13.3371]
[1749233896870,33.47125768,149.85,149.83,13.3371]
[1749233897167,7.23252159,149.84,149.83,13.3371]
[1749233898367,13.90132159,149.84,149.83,13.3371]
[1749233898771,33.47125768,149.85,149.83,13.3371]
[1749233900069,33.42,149.88,149.83,15.4684]
[1749233900473,40.65252159,149.88,149.84,6.6686]
[1749233900669,7.23252159,149.86,149.83,13.3371]
[1749233900978,7.28106718,149.86,149.83,13.38390075]
[1749233901863,13.94916718,149.86,149.83,20.05310075]
[1749233902070,0.04854559,149.86,149.83,20.61642234]
[1749233902576,0.04854559,149.86,149.85,6.6683]
[1749233904273,0.04854559,149.86,149.83,13.38390075]
[1749233904477,7.28106718,149.86,149.83,13.38390075]
[1749233904772,6.6687,149.85,149.83,13.38390075]
[1749233905078,33.42,149.84,149.83,13.38390075]
[1749233908174,40.0888,149.84,149.83,13.38390075]
[1749233908375,47.32132159,149.84,149.83,13.38390075]
[1749233908571,33.42,149.84,149.83,13.38390075]
[1749233909583,33.42,149.84,149.83,20.05310075]
[1749233910581,29.9305,149.84,149.83,20.05310075]
[1749233910779,0.04854559,149.86,149.83,20.05310075]
[1749233911081,6.71664559,149.86,149.83,20.05310075]
[1749233912578,6.71664559,149.86,149.84,6.6686]
[1749233913578,0.04854559,149.86,149.85,6.6683]
[1749233914273,0.04854559,149.86,149.84,6.6686]
[1749233914786,0.04854559,149.86,149.85,6.6683]
[1749233915284,0.04854559,149.86,149.84,6.6686]
[1749233915484,0.04854559,149.86,149.83,20.61642234]
[1749233915883,6.71674559,149.86,149.84,6.6688]
[1749233917486,0.04854559,149.86,149.84,6.6688]
[1749233917990,6.71644559,149.86,149.84,6.6688]
[1749233919091,6.6687,149.85,149.83,13.38390075]
[1749233919295,0.04854559,149.86,149.83,13.38390075]
[1749233920291,0.04854559,149.86,149.83,20.05280075]
[1749233920886,0.04854559,149.86,149.84,6.6687]
[1749233921086,6.71644559,149.86,149.83,13.38390075]
[1749233921292,0.04854559,149.86,149.83,13.38390075]
[1749233921993,0.04854559,149.86,149.83,20.05290075]
[1749233922289,0.04854559,149.86,149.83,13.38390075]
[1749233922993,6.71664559,149.86,149.83,20.05290075]
[1749233924795,0.04854559,149.86,149.84,6.6687]
[1749233925189,0.04854559,149.86,149.83,3.38390075]
[1749233925499,0.04854559,149.86,149.83,13.38390075]
[1749233925797,0.04854559,149.86,149.84,6.6684]
[1749233927897,519.35041705,149.91,149.84,7.23252159]
[1749233927898,33.4,149.9,149.84,7.23252159]
[1749233928091,33.4,149.9,149.86,7.23252159]
[1749233928495,33.4,149.9,149.87,6.6674]
[1749233928893,33.43981048,149.9,149.87,6.71787928]
[1749233929595,6.6668,149.89,149.87,6.71787928]
[1749233935302,40.10611048,149.9,149.88,6.6669]
[1749233937390,40.10611048,149.9,149.87,6.71767928]
[1749233937595,33.43981048,149.9,149.87,6.71767928]
[1749233938001,40.10621048,149.9,149.87,6.71767928]
[1749233938204,33.43981048,149.9,149.89,6.6666]
[1749233938396,0.03981048,149.9,149.89,6.6666]
[1749233940007,33.4,149.92,149.91,6.6657]
[1749233941205,390.41203681,149.98,149.9,7.27495373]
[1749233941505,33.4,149.95,149.92,7.23252159]
[1749233941707,33.4,149.95,149.92,7.27548645]
[1749233941908,424.2428,149.98,149.94,7.23252159]
[1749233942098,33.4,149.98,149.94,7.23252159]
[1749233942299,4.42515914,149.97,149.96,7.23252159]
[1749233942506,4.42515914,149.99,149.98,6.6626]
[1749233942698,4.42515914,150.0,149.98,6.6626]
[1749233942899,11.07908268,150.0,149.97,6.70577802]
[1749233943111,4.41738268,150.0,149.97,0.04307802]
[1749233943314,33.4,150.01,149.97,0.04307802]
[1749233943514,11.08006361,150.0,149.97,6.70587802]
[1749233943706,33.4,150.01,149.98,7.23252159]
[1749233944208,33.4,150.01,149.99,6.6618]
[1749233946903,33.4,150.01,150.0,7.23252159]
[1749233947107,33.38,150.04,150.0,7.23252159]
[1749233947310,33.38,150.04,150.03,6.6604]
[1749233947512,37.83963333,150.04,150.03,6.6604]
[1749233947706,37.83963333,150.04,150.02,7.23252159]
[1749233948013,33.38,150.04,150.03,6.6604]
[1749233948811,33.38,150.07,150.03,6.6604]
[1749233949011,4.47225784,150.06,150.03,6.71114428]
[1749233949306,4.47096639,150.06,150.03,6.71114428]
[1749233949708,4.47096639,150.06,150.04,6.6598]
[1749233950215,11.12856307,150.06,150.03,6.71094428]
[1749233950416,6.6591,150.06,150.03,6.71094428]
[1749233952113,33.38,150.07,150.03,0.05074428]
[1749233952506,6.6593,150.06,150.03,6.71084428]
[1749233952703,6.6593,150.06,150.03,0.05074428]
[1749233952909,33.38,150.07,150.03,0.05074428]
[1749233953108,40.0389,150.07,150.04,6.6599]
[1749233953514,33.38,150.07,150.03,0.05074428]
[1749233954115,6.6591,150.06,150.03,6.71084428]
[1749233954913,7.23252159,150.06,150.03,0.05074428]
[1749233955606,6.6597,150.05,150.03,0.05074428]
[1749233955923,7.23252159,150.06,150.03,0.05074428]
[1749233956112,6.6598,150.05,150.03,0.05074428]
[1749233957111,6.6598,150.05,150.03,10.05074428]
[1749233960118,33.38,150.07,150.03,10.05074428]
[1749233960320,33.38,150.07,150.04,7.23252159]
[1749233960709,33.38,150.07,150.03,10.05074428]
[1749233962019,7.23252159,150.06,150.03,10.05074428]
[1749233962223,6.6599,150.04,150.03,10.05074428]
[1749233970525,6.6595,150.05,150.03,10.05074428]
[1749233971518,6.6599,150.04,150.03,10.05074428]
[1749233972419,6.6597,150.05,150.03,10.05074428]
[1749233974020,7.23252159,150.04,149.9,95.95173741]
[1749233974228,7.23252159,149.98,149.91,7.23252159]
[1749233974425,33.36,149.97,149.94,6.664]
[1749233974721,33.36,149.97,149.93,7.23252159]
[1749233974922,33.36,149.97,149.95,6.6637]
[1749233975129,0.04489475,149.96,149.95,6.6637]
[1749233975418,0.04489475,149.96,149.94,0.04276874]
[1749233975813,0.04489475,149.96,149.94,10.04276874]
[1749233976824,0.04489475,149.96,149.95,6.6639]
[1749233977724,383.78,150.03,149.98,6.6622]
[1749233978025,33.34,150.0,149.98,6.6622]
[1749233978626,40.0017,150.0,149.97,6.6628]
[1749233978817,33.34,150.0,149.97,0.04985132]
[1749233979019,6.6622,149.99,149.97,6.71265132]
[1749233979219,33.34,150.0,149.97,6.71265132]
[1749233979420,33.34,150.0,149.97,0.04985132]
[1749233979715,40.0021,150.0,149.97,0.04985132]
[1749233980837,33.34,150.0,149.98,6.6625]
[1749233981026,33.34,150.0,149.97,0.04985132]
[1749233981225,33.34,150.0,149.97,7.28237291]
[1749233981427,33.34,150.03,149.99,7.23252159]
[1749233981736,4.46720755,150.02,149.99,7.23252159]
[1749233982124,33.34,150.03,149.99,7.23252159]
[1749233982823,4.49320098,150.02,149.99,7.23252159]
[1749233983028,4.49320098,150.02,150.01,6.661]
[1749233984126,33.34,150.03,150.01,6.661]
[1749233984338,4.49422562,150.02,150.01,6.661]
[1749233984532,33.34,150.03,150.02,6.6608]
[1749233984730,4.4942017,150.03,150.02,6.6608]
[1749233984936,11.1540017,150.05,150.02,6.6608]
[1749233985126,4.4942017,150.04,150.02,6.6608]
[1749233985328,4.4942017,150.03,150.02,6.6608]
[1749233985522,6.6598,150.05,150.02,6.6608]
[1749233985523,4.4942017,150.04,150.02,6.6608]
[1749233985724,4.4942017,150.03,150.02,6.6608]
[1749233986128,4.50177507,150.03,150.02,6.6608]
[1749233987033,6.6598,150.05,150.02,6.6608]
[1749233987236,4.5212875,150.04,150.02,16.6608]
[1749233987431,4.5212875,150.03,150.02,10.0]
[1749233987636,4.52130344,150.03,150.02,10.0]
[1749233987937,4.52321525,150.03,150.02,10.0]
[1749233988131,4.52321571,150.03,150.02,10.0]
[1749233988330,4.52321572,150.03,150.02,10.0]
[1749233988528,4.52321572,150.03,150.0,0.04668093]
[1749233988729,7.23252159,150.04,150.0,0.04668093]
[1749233988730,37.86321572,150.02,150.0,0.04668093]
[1749233988937,37.86321572,150.01,150.0,0.04668093]
[1749233989136,37.86739098,150.01,150.0,0.04668093]
[1749233989335,37.8674109,150.01,150.0,0.04668093]
[1749233989535,37.8674031,150.01,150.0,6.70838093]
[1749233989740,37.86739322,150.01,150.0,6.70838093]
[1749233991338,37.8672674,150.01,150.0,16.70838093]
[1749233992843,37.86761657,150.01,150.0,16.70838093]
[1749233993439,37.85626746,150.01,150.0,16.70838093]
[1749233994336,37.84192837,150.01,150.0,16.70838093]
[1749233995033,33.34,150.01,150.0,16.70838093]
[1749233995239,37.84192781,150.01,150.0,16.70838093]
[1749233995940,33.34,150.01,150.0,16.70838093]
[1749233996139,37.84231403,150.01,150.0,16.70838093]
[1749233996738,37.84231736,150.01,150.0,16.70838093]
[1749233997241,37.842456,150.01,150.0,16.70838093]
[1749233997435,33.34,150.01,150.0,16.70838093]
[1749233997637,33.34,150.04,150.03,6.6603]
[1749233997838,33.34,150.04,150.01,7.23252159]
[1749233998646,40.0001,150.04,150.02,6.6606]
[1749234000742,33.34,150.04,150.03,6.6604]
[1749234001150,15.5665584,150.09,150.03,7.23252159]
[1749234001151,33.34,150.07,150.03,7.23252159]
[1749234001353,33.34,150.07,150.03,7.28094964]
[1749234001854,39.9988,150.07,150.04,6.6598]
[1749234002037,33.34,150.07,150.04,6.6598]
[1749234002238,40.57252159,150.07,150.03,10.04842805]
[1749234002541,40.57252159,150.07,150.03,16.70872805]
[1749234002945,6.6593,150.06,150.03,16.70872805]
[1749234003145,6.6593,150.06,150.04,6.6599]
[1749234003348,33.34,150.07,150.03,17.28094964]
[1749234003545,39.9987,150.07,150.03,17.28094964]
[1749234003750,33.34,150.07,150.03,17.28094964]
[1749234004147,6.6591,150.06,150.03,17.28094964]
[1749234004354,6.6591,150.06,150.03,23.94104964]
[1749234005149,6.6591,150.06,150.03,16.70852805]
[1749234005351,39.9988,150.07,150.04,6.6599]
[1749234005752,33.34,150.07,150.03,16.70852805]
[1749234005954,6.6593,150.06,150.03,16.70852805]
[1749234006349,33.34,150.07,150.03,17.28094964]
[1749234007246,39.9989,150.07,150.04,6.6598]
[1749234007446,33.34,150.07,150.04,6.6598]
[1749234007652,33.34,150.07,150.03,17.28094964]
[1749234007858,6.6593,150.06,150.03,23.94104964]
[1749234008352,33.34,150.07,150.03,17.28094964]
[1749234008556,33.34,150.07,150.04,6.6598]
[1749234009355,39.9988,150.07,150.04,6.6598]
[1749234009851,4.44615082,150.06,150.04,6.6598]
[1749234010051,6.659,150.06,150.03,23.94104964]
[1749234010252,4.44617714,150.05,150.03,23.94104964]
[1749234010455,4.44617714,150.04,150.03,23.94104964]
[1749234010656,4.44617714,150.05,150.03,23.94104964]
[1749234010956,4.44617714,150.04,150.03,23.94104964]
[1749234011157,11.10555833,150.05,150.03,23.94104964]
[1749234011360,4.44595834,150.04,150.03,17.28094964]
[1749234012454,11.10595834,150.04,150.03,10.04842805]
[1749234013056,11.10555474,150.04,150.03,10.04842805]
[1749234013359,4.44555474,150.04,150.03,10.04842805]
[1749234014254,18.33807633,150.04,150.03,0.04842805]
[1749234014454,13.89252159,150.04,150.03,0.04842805]
[1749234014657,18.33854386,150.04,150.03,10.04842805]
[1749234015652,18.33854386,150.04,150.03,5.54597205]
[1749234016049,13.89252159,150.04,150.03,5.54597205]
[1749234016365,18.33872874,150.04,150.03,5.54597205]
[1749234016754,11.10620715,150.04,150.03,5.54597205]
[1749234017762,11.10619249,150.04,150.03,5.54597205]
[1749234018061,44.44619354,150.04,150.03,5.54597205]
[1749234018261,40.0,150.04,150.03,5.54597205]
[1749234018561,44.42461264,150.04,150.03,5.54597205]
[1749234019161,44.42974297,150.04,150.03,5.54597205]
[1749234019467,40.0,150.04,150.03,5.54597205]
[1749234019966,44.42974309,150.04,150.03,5.54597205]
[1749234020258,51.67183381,150.04,150.03,5.54597205]
[1749234021061,51.67182623,150.04,150.03,5.54597205]
[1749234021256,47.23252159,150.04,150.03,5.54597205]
[1749234021452,51.67182623,150.04,150.03,5.54597205]
[1749234022862,13.89252159,150.04,150.03,5.54597205]
[1749234023057,51.68135969,150.04,150.03,5.54597205]
[1749234023363,47.23252159,150.04,150.03,5.54597205]
[1749234023560,51.67961447,150.04,150.03,5.54597205]
[1749234024358,51.67967062,150.04,150.03,5.54597205]
[1749234024757,51.67967063,150.04,150.03,5.54597205]
[1749234025362,180.55967063,150.04,150.03,5.54597205]
[1749234026157,180.55953174,150.04,150.03,5.54597205]
[1749234026364,176.11252159,150.04,150.03,5.54597205]
[1749234026567,180.55952084,150.04,150.03,5.54597205]
[1749234027454,176.11252159,150.04,150.03,5.54597205]
[1749234027854,180.55969478,150.04,150.03,5.54597205]
[1749234029364,176.11252159,150.04,150.03,5.54597205]
[1749234029563,180.55755249,150.04,150.03,5.54597205]
[1749234029766,176.11252159,150.04,150.03,5.54597205]
[1749234029961,180.55755249,150.04,150.03,5.54597205]
[1749234030362,180.55742643,150.04,150.03,5.54597205]
[1749234030762,180.55740761,150.04,150.03,5.54597205]
[1749234031172,37.78488602,150.04,150.03,5.54597205]
[1749234031467,37.7848513,150.04,150.03,5.54597205]
[1749234031663,44.43945289,150.04,150.03,5.54597205]
[1749234032570,51.67197448,150.04,150.03,5.54597205]
[1749234032765,51.67197448,150.04,150.03,7.205e-05]
[1749234032964,6.6604,150.03,150.02,0.04448192]
[1749234033160,11.10026337,150.03,150.02,0.04448192]
[1749234034366,6.6604,150.03,150.02,0.04448192]
[1749234034764,11.10388115,150.03,150.02,0.04448192]
[1749234035067,11.10388115,150.03,150.02,10.04448192]
[1749234035670,11.10151818,150.03,150.02,10.04448192]
[1749234036168,6.6604,150.03,150.02,10.04448192]
[1749234036367,11.10155217,150.03,150.02,10.04448192]
[1749234036570,6.6604,150.03,150.02,10.04448192]
[1749234036767,11.08972451,150.03,150.02,10.04448192]
[1749234037671,6.6604,150.03,150.02,10.04448192]
[1749234037975,4.42905005,150.03,150.02,10.04448192]
[1749234038174,4.42906943,150.03,150.02,10.04448192]
[1749234039071,11.08946943,150.03,150.02,10.04448192]
[1749234039373,6.6604,150.03,150.02,10.04448192]
[1749234039575,11.08309668,150.03,150.02,10.04448192]
[1749234039776,6.6604,150.03,150.02,10.04448192]
[1749234039976,11.08309692,150.03,150.02,10.04448192]
[1749234041278,11.09365158,150.03,150.02,10.04448192]
[1749234042674,6.6604,150.03,150.02,10.04448192]
[1749234042975,11.10446397,150.03,150.02,10.04448192]
[1749234043180,6.6604,150.03,150.02,10.04448192]
[1749234043378,11.10446246,150.03,150.02,10.04448192]
[1749234045785,11.10435665,150.03,150.02,10.04448192]
[1749234045984,11.10435524,150.03,150.02,10.04448192]
[1749234047283,18.33687683,150.03,150.02,0.00928192]
[1749234047486,18.33719858,150.03,150.02,0.00928192]
[1749234047682,18.33734205,150.03,150.02,0.00928192]
[1749234047984,18.33671173,150.03,150.02,0.00928192]
[1749234048186,18.3367131,150.03,150.02,0.00928192]
[1749234048387,24.56874991,150.03,150.02,0.00928192]
[1749234048783,18.33671734,150.03,150.02,0.00928192]
[1749234048987,24.56875415,150.03,150.02,0.00928192]
[1749234049488,18.33737863,150.03,150.02,0.00928192]
[1749234049687,24.56954152,150.03,150.02,0.00928192]
[1749234049885,24.5695528,150.03,150.02,0.00928192]
[1749234050691,24.56803432,150.03,150.02,0.00928192]
[1749234051496,6.6609,150.02,150.01,0.05066731]
[1749234051989,11.08779626,150.02,150.01,0.05066731]
[1749234052190,11.08779759,150.02,150.01,0.05066731]
[1749234052585,13.89342159,150.02,150.01,0.05066731]
[1749234052890,18.31730676,150.02,150.01,0.05066731]
[1749234053192,18.31732716,150.02,150.01,0.05066731]
[1749234053392,18.31732716,150.02,150.01,10.05066731]
[1749234053693,18.3158867,150.02,150.01,10.05066731]
[1749234054089,18.31590948,150.02,150.01,10.05066731]
[1749234054591,18.31691105,150.02,150.01,6.731e-05]
[1749234055198,6.6624,149.99,149.95,8.8022]
[1749234055488,4.42348946,149.98,149.95,8.8022]
[1749234055690,0.04778102,149.98,149.96,0.04904457]
[1749234055890,4.61313221,149.97,149.96,0.04904457]
[1749234056092,4.61447014,149.97,149.96,0.04904457]
[1749234056292,4.61447004,149.97,149.96,6.71224457]
[1749234056890,4.61357444,149.97,149.96,6.71224457]
[1749234057198,4.61357445,149.97,149.96,16.71224457]
[1749234057789,0.04778102,149.98,149.97,6.6631]
[1749234058395,4.65067437,149.98,149.97,6.6631]
[1749234059192,0.04778102,149.98,149.97,6.6631]
[1749234059597,4.64899357,149.98,149.97,6.6631]
[1749234059795,4.64899358,149.98,149.97,6.6631]
[1749234060802,0.04778102,149.98,149.97,13.89562159]
[1749234067198,0.04778102,149.98,149.97,7.23252159]
[1749234067401,11.89288032,149.98,149.96,16.23467381]
[1749234067605,4.61257771,149.97,149.96,10.04904457]
[1749234067799,11.275471,149.97,149.96,10.04904457]
[1749234068100,11.27550552,149.97,149.96,10.04904457]
[1749234068306,11.27551091,149.97,149.96,10.04904457]
[1749234068497,11.27553559,149.97,149.96,10.04904457]
[1749234069298,11.2823693,149.97,149.96,10.04904457]
[1749234069907,11.28236468,149.97,149.96,10.04904457]
[1749234071207,6.6631,149.97,149.96,10.04904457]
[1749234071600,11.28381625,149.97,149.96,10.04904457]